{"text_format":"3","workbook":"xlsx","n_sheets":1,"sheets":["Υπολογιστής δανείου"],"not_rendered":{"defined_names":10},"read":"whole","date_system":"1900"}

{"sheet":"Υπολογιστής δανείου","index":0,"n_rows":22,"n_cols":13,"rows_kept":22,"merged":[[1,1,1,3],[1,6,2,8],[1,11,2,12],[2,1,2,3],[6,5,6,6],[7,5,7,6],[10,2,10,5],[10,6,10,8],[10,9,10,12],[18,2,18,12]]}
[]
[null,"ΦΟΙΤΗΤΙΚΟ ΔΑΝΕΙΟ ",{"$nulls":4},{"v":50000,"d":"50,000.00 €"},{"$nulls":4},{"v":40673,"d":"4067300.00%"}]
[null,"ΥΠΟΛΟΓΙΣΤΗΣ"]
[]
[null,"Συνιστάται οι συνολικές μηνιαίες αποπληρωμές του φοιτητικού δανείου σας να μην υπερβαίνουν το 8% του ετήσιου μισθού σας για το πρώτο έτος."]
[]
[{"$nulls":4},"Η τρέχουσα συνδυασμένη μηνιαία πληρωμή είναι:",{"$f":"CollegeLoans[[#Totals],[Τρέχουσα μηνιαία πληρωμή]]","v":{"v":328.58590726058833,"d":"328.59 €"}},{"$nulls":5},"Η συνδυασμένη προγραμματισμένη μηνιαία πληρωμή είναι:",{"$f":"CollegeLoans[[#Totals],[Προγραμματισμένη πληρωμή]]","v":{"v":328.58590726058833,"d":"328.59 €"}}]
[{"$nulls":4},"Ποσοστό του μηνιαίου εισοδήματος:",{"$f":"CollegeLoans[[#Totals],[Τρέχουσα μηνιαία πληρωμή]]/EstimatedMonthlySalary","v":{"v":0.07886061774254119,"d":"7.89%"}},{"$nulls":5},"Ποσοστό του μηνιαίου εισοδήματος:",{"$f":"CollegeLoans[[#Totals],[Προγραμματισμένη πληρωμή]]/EstimatedMonthlySalary","v":{"v":0.07886061774254119,"d":"7.89%"}}]
[]
[]
[null,null,"ΓΕΝΙΚΕΣ ΛΕΠΤΟΜΕΡΕΙΕΣ ΔΑΝΕΙΟΥ",{"$nulls":3},"ΔΕΔΟΜΕΝΑ ΑΠΟΠΛΗΡΩΜΗΣ ΔΑΝΕΙΟΥ",null,null,"ΛΕΠΤΟΜΕΡΕΙΕΣ ΠΛΗΡΩΜΗΣ"]
[null,null,"Αρ. δανείου","Δανειστής","Ποσό δανείου","Ετήσιο επιτόκιο","Ημερομηνία έναρξης","Διάρκεια (Έτη)","Ημερομηνία λήξης","Τρέχουσα μηνιαία πληρωμή","Σύνολο τόκων","Προγραμματισμένη πληρωμή","Ετήσια πληρωμή"]
[null,null,"10998M88","Δανειστής 1",{"v":10000,"d":"10,000.00 €"},{"v":0.05,"d":"5.00%"},{"v":40634,"d":"4063400.00%"},10,{"$f":"IF(AND(CollegeLoans[[#This Row],[Ημερομηνία έναρξης]]>0,CollegeLoans[[#This Row],[Διάρκεια (Έτη)]]>0),EDATE(CollegeLoans[[#This Row],[Ημερομηνία έναρξης]],CollegeLoans[[#This Row],[Διάρκεια (Έτη)]]*12),\"\")","v":{"v":44287,"d":"4428700.00%"}},{"$f":"IF(AND(LoanStartLToday,COUNT(CollegeLoans[[#This Row],[Ποσό δανείου]:[Διάρκεια (Έτη)]])=4,CollegeLoans[[#This Row],[Ημερομηνία έναρξης]]<TODAY()),PMT(CollegeLoans[[#This Row],[Ετήσιο επιτόκιο]]/12,CollegeLoans[[#This Row],[Διάρκεια (Έτη)]]*12,-CollegeLoans[[#This Row],[Ποσό δανείου]],0,0),\"\")","v":{"v":106.06551523907524,"d":"106.07 €"}},{"$f":"IFERROR((CollegeLoans[[#This Row],[Προγραμματισμένη πληρωμή]]*(CollegeLoans[[#This Row],[Διάρκεια (Έτη)]]*12))-CollegeLoans[[#This Row],[Ποσό δανείου]],\"\")","v":{"v":2727.8618286890287,"d":"2,727.86 €"}},{"$f":"IF(COUNTA(CollegeLoans[[#This Row],[Ποσό δανείου]:[Διάρκεια (Έτη)]])<>4,\"\",PMT(CollegeLoans[[#This Row],[Ετήσιο επιτόκιο]]/12,CollegeLoans[[#This Row],[Διάρκεια (Έτη)]]*12,-CollegeLoans[[#This Row],[Ποσό δανείου]],0,0))","v":{"v":106.06551523907524,"d":"106.07 €"}},{"$f":"IFERROR(CollegeLoans[[#This Row],[Προγραμματισμένη πληρωμή]]*12,\"\")","v":{"v":1272.7861828689029,"d":"1,272.79 €"}}]
[null,null,"20987N87","Δανειστής 2",{"v":8000,"d":"8,000.00 €"},{"v":0.05,"d":"5.00%"},{"v":40664,"d":"4066400.00%"},10,{"$f":"IF(AND(CollegeLoans[[#This Row],[Ημερομηνία έναρξης]]>0,CollegeLoans[[#This Row],[Διάρκεια (Έτη)]]>0),EDATE(CollegeLoans[[#This Row],[Ημερομηνία έναρξης]],CollegeLoans[[#This Row],[Διάρκεια (Έτη)]]*12),\"\")","v":{"v":44317,"d":"4431700.00%"}},{"$f":"IF(AND(LoanStartLToday,COUNT(CollegeLoans[[#This Row],[Ποσό δανείου]:[Διάρκεια (Έτη)]])=4,CollegeLoans[[#This Row],[Ημερομηνία έναρξης]]<TODAY()),PMT(CollegeLoans[[#This Row],[Ετήσιο επιτόκιο]]/12,CollegeLoans[[#This Row],[Διάρκεια (Έτη)]]*12,-CollegeLoans[[#This Row],[Ποσό δανείου]],0,0),\"\")","v":{"v":84.85241219126019,"d":"84.85 €"}},{"$f":"IFERROR((CollegeLoans[[#This Row],[Προγραμματισμένη πληρωμή]]*(CollegeLoans[[#This Row],[Διάρκεια (Έτη)]]*12))-CollegeLoans[[#This Row],[Ποσό δανείου]],\"\")","v":{"v":2182.289462951223,"d":"2,182.29 €"}},{"$f":"IF(COUNTA(CollegeLoans[[#This Row],[Ποσό δανείου]:[Διάρκεια (Έτη)]])<>4,\"\",PMT(CollegeLoans[[#This Row],[Ετήσιο επιτόκιο]]/12,CollegeLoans[[#This Row],[Διάρκεια (Έτη)]]*12,-CollegeLoans[[#This Row],[Ποσό δανείου]],0,0))","v":{"v":84.85241219126019,"d":"84.85 €"}},{"$f":"IFERROR(CollegeLoans[[#This Row],[Προγραμματισμένη πληρωμή]]*12,\"\")","v":{"v":1018.2289462951222,"d":"1,018.23 €"}}]
[null,null,"36785LM","Δανειστής 3",{"v":6000,"d":"6,000.00 €"},{"v":0.045,"d":"4.50%"},{"v":40969,"d":"4096900.00%"},10,{"$f":"IF(AND(CollegeLoans[[#This Row],[Ημερομηνία έναρξης]]>0,CollegeLoans[[#This Row],[Διάρκεια (Έτη)]]>0),EDATE(CollegeLoans[[#This Row],[Ημερομηνία έναρξης]],CollegeLoans[[#This Row],[Διάρκεια (Έτη)]]*12),\"\")","v":{"v":44621,"d":"4462100.00%"}},{"$f":"IF(AND(LoanStartLToday,COUNT(CollegeLoans[[#This Row],[Ποσό δανείου]:[Διάρκεια (Έτη)]])=4,CollegeLoans[[#This Row],[Ημερομηνία έναρξης]]<TODAY()),PMT(CollegeLoans[[#This Row],[Ετήσιο επιτόκιο]]/12,CollegeLoans[[#This Row],[Διάρκεια (Έτη)]]*12,-CollegeLoans[[#This Row],[Ποσό δανείου]],0,0),\"\")","v":{"v":62.18304525420918,"d":"62.18 €"}},{"$f":"IFERROR((CollegeLoans[[#This Row],[Προγραμματισμένη πληρωμή]]*(CollegeLoans[[#This Row],[Διάρκεια (Έτη)]]*12))-CollegeLoans[[#This Row],[Ποσό δανείου]],\"\")","v":{"v":1461.9654305051017,"d":"1,461.97 €"}},{"$f":"IF(COUNTA(CollegeLoans[[#This Row],[Ποσό δανείου]:[Διάρκεια (Έτη)]])<>4,\"\",PMT(CollegeLoans[[#This Row],[Ετήσιο επιτόκιο]]/12,CollegeLoans[[#This Row],[Διάρκεια (Έτη)]]*12,-CollegeLoans[[#This Row],[Ποσό δανείου]],0,0))","v":{"v":62.18304525420918,"d":"62.18 €"}},{"$f":"IFERROR(CollegeLoans[[#This Row],[Προγραμματισμένη πληρωμή]]*12,\"\")","v":{"v":746.1965430505102,"d":"746.20 €"}}]
[null,null,"765R43","Δανειστής 4",{"v":4000,"d":"4,000.00 €"},{"v":0.05,"d":"5.00%"},{"v":41030,"d":"4103000.00%"},5,{"$f":"IF(AND(CollegeLoans[[#This Row],[Ημερομηνία έναρξης]]>0,CollegeLoans[[#This Row],[Διάρκεια (Έτη)]]>0),EDATE(CollegeLoans[[#This Row],[Ημερομηνία έναρξης]],CollegeLoans[[#This Row],[Διάρκεια (Έτη)]]*12),\"\")","v":{"v":42856,"d":"4285600.00%"}},{"$f":"IF(AND(LoanStartLToday,COUNT(CollegeLoans[[#This Row],[Ποσό δανείου]:[Διάρκεια (Έτη)]])=4,CollegeLoans[[#This Row],[Ημερομηνία έναρξης]]<TODAY()),PMT(CollegeLoans[[#This Row],[Ετήσιο επιτόκιο]]/12,CollegeLoans[[#This Row],[Διάρκεια (Έτη)]]*12,-CollegeLoans[[#This Row],[Ποσό δανείου]],0,0),\"\")","v":{"v":75.48493457604374,"d":"75.48 €"}},{"$f":"IFERROR((CollegeLoans[[#This Row],[Προγραμματισμένη πληρωμή]]*(CollegeLoans[[#This Row],[Διάρκεια (Έτη)]]*12))-CollegeLoans[[#This Row],[Ποσό δανείου]],\"\")","v":{"v":529.0960745626244,"d":"529.10 €"}},{"$f":"IF(COUNTA(CollegeLoans[[#This Row],[Ποσό δανείου]:[Διάρκεια (Έτη)]])<>4,\"\",PMT(CollegeLoans[[#This Row],[Ετήσιο επιτόκιο]]/12,CollegeLoans[[#This Row],[Διάρκεια (Έτη)]]*12,-CollegeLoans[[#This Row],[Ποσό δανείου]],0,0))","v":{"v":75.48493457604374,"d":"75.48 €"}},{"$f":"IFERROR(CollegeLoans[[#This Row],[Προγραμματισμένη πληρωμή]]*12,\"\")","v":{"v":905.8192149125249,"d":"905.82 €"}}]
[null,null,"Σύνολα",null,{"$f":"SUBTOTAL(109,CollegeLoans[Ποσό δανείου])","v":{"v":28000,"d":"28,000.00 €"}},{"$nulls":4},{"$f":"SUBTOTAL(109,CollegeLoans[Τρέχουσα μηνιαία πληρωμή])","v":{"v":328.58590726058833,"d":"328.59 €"}},{"$f":"SUBTOTAL(109,CollegeLoans[Σύνολο τόκων])","v":{"v":6901.212796707978,"d":"6,901.21 €"}},{"$f":"SUBTOTAL(109,CollegeLoans[Προγραμματισμένη πληρωμή])","v":{"v":328.58590726058833,"d":"328.59 €"}},{"$f":"SUBTOTAL(109,CollegeLoans[Ετήσια πληρωμή])","v":{"v":3943.03088712706,"d":"3,943.03 €"}}]
[null,null,"Μέσοι όροι",null,{"$f":"AVERAGE(CollegeLoans[Ποσό δανείου])","v":{"v":7000,"d":"7,000.00 €"}},{"$f":"AVERAGE(CollegeLoans[Ετήσιο επιτόκιο])","v":{"v":0.04875,"d":"4.88%"}},{"$nulls":4},{"$f":"AVERAGE(CollegeLoans[Σύνολο τόκων])","v":{"v":1725.3031991769944,"d":"1,725.30 €"}},null,{"$f":"AVERAGE(CollegeLoans[Ετήσια πληρωμή])","v":{"v":985.757721781765,"d":"985.76 €"}}]
[]
[{"$nulls":10},"Συνολική ενοποιημένη αποπληρωμή δανείων:",null,{"$f":"CollegeLoans[[#Totals],[Ποσό δανείου]]+CollegeLoans[[#Totals],[Σύνολο τόκων]]","v":{"v":34901.21279670798,"d":"34,901.21 €"}}]
[]
[{"$nulls":10},"Εκτιμώμενο μηνιαίο εισόδημα μετά την αποφοίτηση:",null,{"$f":"(EstimatedAnnualSalary/12)","v":{"v":4166.666666666667,"d":"4,166.67 €"}}]